fUST/lending_fUST_20240415
["ID","MTS","AMOUNT","RATE_DAILY","PERIOD"]
[322629125,1713136239926,-500.0,0.00038356,7]
[322629126,1713136239937,-500.0,0.00038356,7]
[322629127,1713136239946,-500.0,0.00038356,7]
[322629128,1713136239955,-500.0,0.00038356,7]
[322629129,1713136239964,-500.0,0.00038356,7]
[322629130,1713136239973,-1056.8,0.00038356,7]
[322629131,1713136239983,-500.0,0.00038356,7]
[322629132,1713136239992,-1369.03,0.00038356,7]
[322629133,1713136240002,-500.0,0.00038356,7]
[322629134,1713136240012,-500.0,0.00038356,7]
[322629135,1713136240028,-1500.44,0.00038356,7]
[322629136,1713136240038,-175.79838242,0.00038356,7]
[322629137,1713136240048,-500.0,0.00038356,7]
[322629138,1713136240058,-500.0,0.00038356,7]
[322629139,1713136240067,-500.0,0.00038356,7]
[322629140,1713136240077,-500.0,0.00038356,7]
[322629141,1713136240086,-500.0,0.00038356,7]
[322629142,1713136240096,-500.0,0.00038356,7]
[322629143,1713136240106,-159.46396657,0.00038356,7]
[322629144,1713136240116,-522.31,0.00038356,7]
[322629145,1713136240125,-4504.26,0.00038356,7]
[322629146,1713136240135,-19778.48,0.00038356,7]
[322629147,1713136240144,-500.0,0.00038356,7]
[322629148,1713136240154,-500.0,0.00038356,7]
[322629149,1713136240163,-6340.92,0.00038356,7]
[322629150,1713136240172,-500.0,0.00038356,7]
[322629151,1713136240182,-2404.15,0.00038356,7]
[322629152,1713136240192,-500.0,0.00038356,7]
[322629153,1713136240201,-500.0,0.00038356,7]
[322629154,1713136240210,-500.0,0.00038356,7]
[322629155,1713136240219,-500.0,0.00038356,7]
[322629156,1713136240230,-500.0,0.00038356,7]
[322629157,1713136240240,-500.0,0.00038356,7]
[322629158,1713136240249,-500.0,0.00038356,7]
[322629159,1713136240259,-932.81,0.00038356,7]
[322629160,1713136240273,-1560.74,0.00038356,7]
[322629161,1713136240282,-584.74709342,0.00038356,7]
[322629162,1713136240292,-2051.44,0.00038356,7]
[322629163,1713136240301,-500.0,0.00038356,7]
[322629164,1713136240312,-570.3,0.00038356,7]
[322629165,1713136240322,-3633.99,0.00038356,7]
[322629166,1713136240332,-2149.88,0.00038356,7]
[322629167,1713136240342,-789.97,0.00038356,7]
[322629168,1713136240352,-500.0,0.00038356,7]
[322629169,1713136240362,-500.0,0.00038356,7]
[322629170,1713136240371,-500.0,0.00038356,7]
[322629171,1713136240380,-500.0,0.00038356,7]
[322629172,1713136240389,-740.5,0.00038356,7]
[322629173,1713136240398,-500.0,0.00038356,7]
[322629174,1713136240407,-2790.57,0.00038356,7]
[322629175,1713136240416,-15564.47,0.00038356,7]
[322629176,1713136240425,-500.0,0.00038356,7]
[322629177,1713136240434,-2201.61,0.00038356,7]
[322629178,1713136240443,-591.77,0.00038356,7]
[322629179,1713136240453,-500.0,0.00038356,7]
[322629180,1713136240463,-500.0,0.00038356,7]
[322629181,1713136240472,-500.0,0.00038356,7]
[322629182,1713136240484,-633.38,0.00038356,7]
[322629183,1713136240494,-500.0,0.00038356,7]
[322629184,1713136240505,-500.0,0.00038356,7]
[322629185,1713136240516,-661.11,0.00038356,7]
[322629186,1713136240526,-238.45503477,0.00038356,7]
[322629230,1713136913586,1348.16542198,0.00042385,30]
[322629233,1713137148262,-188.84242827,0.00027386,2]
[322629234,1713137148282,-543.6914644,0.00027386,2]
[322629235,1713137148302,-161.73972493,0.00027387,2]
[322629236,1713137148322,-4895.34105802,0.00027395,2]
[322629237,1713137148342,-701.61710816,0.00027396,2]
[322629238,1713137148363,-8000.0,0.00027396,2]
[322629239,1713137148385,-172.459343,0.00027397,2]
[322629240,1713137148404,-156.87945876,0.00028766,2]
[322629241,1713137148423,-166.666666,0.00033181,2]
[322629242,1713137148442,-400.0,0.00033267,2]
[322629243,1713137148467,-400.0,0.00033267,2]
[322629244,1713137148486,-24890.0,0.00033269,2]
[322629245,1713137148512,-486.84013069,0.00033985,6]
[322629246,1713137148532,-166.666666,0.00034085,2]
[322629247,1713137148554,-180.881973,0.00034095,2]
[322629248,1713137148574,-218.156241,0.00034227,2]
[322629249,1713137148594,-166.666666,0.0003499,2]
[322629250,1713137148613,-486.84013063,0.00035171,7]
[322629251,1713137148634,-199.319085,0.00035616,120]
[322629252,1713137148654,-560.0,0.00035733,2]
[322629253,1713137148674,-166.666666,0.00035895,2]
[322629254,1713137148692,-433.86440726,0.00036256,2]
[322629255,1713137148712,-486.84013063,0.00036357,7]
[322629256,1713137148733,-560.0,0.00036593,2]
[322629257,1713137148752,-166.666666,0.00036799,2]
[322629258,1713137148771,-183.792618,0.00036912,2]
[322629259,1713137148790,-486.84013063,0.00037543,8]
[322629260,1713137148809,-166.666666,0.00037704,2]
[322629261,1713137148829,-500.0,0.00037938,2]
[322629262,1713137148849,-6576.37363606,0.00037939,7]
[322629263,1713137148869,-500.0,0.00037993,2]
[322629264,1713137148890,-2000.0,0.00038256,2]
[322629265,1713137148909,-867.21554851,0.00038256,2]
[322629266,1713137148928,-20012.59352522,0.000383,2]
[322629267,1713137148947,-867.21554849,0.00038325,2]
[322629268,1713137148966,-780.68955372,0.00038354,4]
[322629269,1713137148986,-154.82968734,0.00038355,4]
[322629270,1713137149007,-815.59277756,0.00038355,4]
[322629271,1713137149029,-5915.74281812,0.00038356,5]
[322629272,1713137149050,-500.0,0.00038356,7]
[322629273,1713137149070,-461.04376869,0.00038356,7]
[322629274,1713137149090,-585.74559228,0.00038356,7]
[322629275,1713137149110,-500.0,0.00038356,7]
[322629276,1713137149132,-500.0,0.00038356,7]
[322629277,1713137149153,-500.0,0.00038356,7]
[322629278,1713137149174,-500.0,0.00038356,7]
[322629279,1713137149195,-503.67009233,0.00038356,7]
[322629280,1713137149216,-500.0,0.00038356,7]
[322629281,1713137149237,-500.0,0.00038356,7]
[322629282,1713137149258,-503.25,0.00038356,7]
[322629283,1713137149279,-500.0,0.00038356,7]
[322629284,1713137149300,-500.0,0.00038356,7]
[322629285,1713137149322,-342.35558158,0.00038356,7]
[322629286,1713137149342,-500.0,0.00038356,7]
[322629287,1713137149362,-500.0,0.00038356,7]
[322629288,1713137149383,-500.0,0.00038356,7]
[322629289,1713137149415,-500.0,0.00038356,7]
[322629290,1713137149437,-500.0,0.00038356,7]
[322629291,1713137149458,-500.0,0.00038356,7]
[322629292,1713137149478,-500.0,0.00038356,7]
[322629293,1713137149501,-500.0,0.00038356,7]
[322629294,1713137149528,-500.0,0.00038356,7]
[322629295,1713137149551,-500.0,0.00038356,7]
[322629296,1713137149572,-500.0,0.00038356,7]
[322629297,1713137149594,-500.0,0.00038356,7]
[322629298,1713137149614,-684.31,0.00038356,7]
[322629299,1713137149637,-500.0,0.00038356,7]
[322629300,1713137149657,-500.0,0.00038356,7]
[322629301,1713137149678,-500.0,0.00038356,7]
[322629302,1713137149698,-500.0,0.00038356,7]
[322629303,1713137149719,-500.0,0.00038356,7]
[322629304,1713137149740,-500.0,0.00038356,7]
[322629305,1713137149761,-500.0,0.00038356,7]
[322629306,1713137149782,-539.56676316,0.00038356,7]
[322629307,1713137149803,-500.0,0.00038356,7]
[322629308,1713137149824,-500.0,0.00038356,7]
[322629309,1713137149845,-500.0,0.00038356,7]
[322629310,1713137149865,-500.0,0.00038356,7]
[322629311,1713137149886,-500.0,0.00038356,7]
[322629312,1713137149907,-217.46734451,0.00038356,7]
[322629313,1713137149926,-500.0,0.00038356,7]
[322629314,1713137149946,-591.77,0.00038356,7]
[322629315,1713137149967,-500.0,0.00038356,7]
[322629316,1713137149988,-500.0,0.00038356,7]
[322629317,1713137150008,-500.0,0.00038356,7]
[322629318,1713137150030,-570.3,0.00038356,7]
[322629319,1713137150053,-566.31201203,0.00038356,7]
[322629320,1713137150075,-500.0,0.00038356,7]
[322629321,1713137150096,-740.5,0.00038356,7]
[322629322,1713137150116,-500.0,0.00038356,7]
[322629323,1713137150139,-500.0,0.00038356,7]
[322629324,1713137150160,-500.0,0.00038356,7]
[322629325,1713137150181,-500.0,0.00038356,7]
[322629326,1713137150203,-442.49465074,0.00038356,7]
[322629327,1713137226098,-520.45970248,0.00036255,4]
[322629328,1713137226119,-289.24293818,0.00036256,2]
[322629329,1713137226141,-627.10452201,0.00037938,4]
[322629331,1713137235101,-893.96515811,0.00037938,4]
[322629332,1713137252104,-170.393996,0.00036979,2]
[322629333,1713137252125,-427.2072516,0.00037937,2]
[322629334,1713137253101,-303.28032053,0.00037937,2]
[322629335,1713137253121,-911.58030491,0.00037938,4]
[322629336,1713137345085,-518.9022578,0.00027396,2]
[322629337,1713137345109,-160.676168,0.00027397,2]
[322629338,1713137411608,156.87945876,0.00028766,2]
[322629365,1713137432475,-433.71641873,0.00036606,4]
[322629366,1713137432485,-166.666666,0.00036607,2]
[322629367,1713137432494,-166.666666,0.00037605,2]
[322629368,1713137432503,-730.48757213,0.00037932,2]
[322629369,1713137432513,-5567.35001497,0.00037938,4]
[322629370,1713137432523,-400.0,0.00037938,2]
[322629371,1713137432533,-400.0,0.00037938,2]
[322629372,1713137432543,-6576.37363606,0.00037939,7]
[322629373,1713137432552,-187.9965655,0.00038254,2]
[322629374,1713137432561,-187.99656548,0.00038255,2]
[322629375,1713137432570,-243.42006535,0.00038255,8]
[322629376,1713137432579,-187.99656548,0.00038255,2]
[322629377,1713137432590,-751.70547771,0.00038256,2]
[322629379,1713137432600,-187.99656548,0.00038256,2]
[322629380,1713137432609,-247.91717775,0.00038354,4]
[322629381,1713137432618,-232.14868867,0.00038354,4]
[322629382,1713137432631,-336.1609689,0.00038354,4]
[322629383,1713137432640,-25260.50253699,0.00038355,4]
[322629384,1713137432649,-500.0,0.00038355,15]
[322629385,1713137432658,-500.0,0.00038355,15]
[322629386,1713137432667,-500.0,0.00038355,15]
[322629387,1713137432676,-187.08745306,0.00038355,15]
[322629388,1713137432685,-500.0,0.00038355,15]
[322629389,1713137432694,-500.0,0.00038355,15]
[322629390,1713137432703,-250.0,0.00038355,15]
[322629391,1713137432714,-17745.10107685,0.00038356,5]
[322629403,1713137439331,-35694.64997422,0.00038356,5]
[322629404,1713137439344,-57.50534926,0.00038356,7]
[322629405,1713137439354,-500.0,0.00038356,7]
[322629406,1713137439364,-500.0,0.00038356,7]
[322629407,1713137439373,-492.91050974,0.00038356,7]
[322629408,1713137439384,-754.38,0.00038356,7]
[322629409,1713137439394,-500.0,0.00038356,7]
[322629410,1713137439406,-164.72271127,0.00038356,7]
[322629411,1713137439417,-500.0,0.00038356,7]
[322629412,1713137439428,-615.48892633,0.00038356,7]
[322629413,1713137439439,-1481.07,0.00038356,7]
[322629414,1713137439449,-500.0,0.00038356,7]
[322629415,1713137439460,-517.79576344,0.00038356,7]
[322629416,1713137439470,-500.0,0.00038356,7]
[322629417,1713137439481,-500.0,0.00038356,7]
[322629418,1713137439492,-500.0,0.00038356,7]
[322629419,1713137439504,-383.63703262,0.00038356,7]
[322629420,1713137439514,-500.0,0.00038356,2]
[322629421,1713137439526,-500.0,0.00038356,7]
[322629422,1713137439537,-500.0,0.00038356,7]
[322629423,1713137439547,-500.0,0.00038356,7]
[322629424,1713137439558,-500.0,0.00038356,7]
[322629425,1713137439568,-500.0,0.00038356,7]
[322629426,1713137439578,-500.0,0.00038356,7]
[322629427,1713137439591,-500.76215908,0.00038356,7]
[322629428,1713137439602,-500.0,0.00038356,7]
[322629429,1713137439613,-500.0,0.00038356,7]
[322629430,1713137439623,-378.35174997,0.00038356,7]
[322629431,1713137439634,-500.0,0.00038356,7]
[322629432,1713137439644,-500.0,0.00038356,7]
[322629433,1713137439655,-500.0,0.00038356,7]
[322629434,1713137439665,-500.0,0.00038356,7]
[322629435,1713137439675,-500.0,0.00038356,7]
[322629436,1713137439685,-500.0,0.00038356,7]
[322629437,1713137439696,-500.0,0.00038356,7]
[322629438,1713137439710,-500.0,0.00038356,7]
[322629439,1713137439720,-475.06860985,0.00038356,7]
[322629440,1713137439732,-527.46487422,0.00038356,7]
[322629441,1713137439745,-500.0,0.00038356,7]
[322629442,1713137439757,-502.19453378,0.00038356,7]
[322629443,1713137439769,-500.0,0.00038356,7]
[322629444,1713137439780,-500.0,0.00038356,7]
[322629445,1713137439789,-1636.3,0.00038356,7]
[322629446,1713137439799,-500.0,0.00038356,7]
[322629447,1713137439809,-500.0,0.00038356,7]
[322629448,1713137439819,-500.0,0.00038356,7]
[322629449,1713137439829,-500.0,0.00038356,7]
[322629450,1713137439843,-500.0,0.00038356,7]
[322629451,1713137439852,-553.39,0.00038356,7]
[322629452,1713137439862,-175.6061775,0.00038356,7]
[322629454,1713137440000,-324.3938225,0.00038356,7]
[322629455,1713137440011,-500.0,0.00038356,7]
[322629457,1713137440024,-500.0,0.00038356,7]
[322629458,1713137440036,-500.0,0.00038356,7]
[322629460,1713137440046,-676.03,0.00038356,7]
[322629461,1713137440057,-500.0,0.00038356,7]
[322629462,1713137440067,-260.4001905,0.00038356,7]
[322629463,1713137440077,-500.0,0.00038356,7]
[322629464,1713137440088,-500.0,0.00038356,7]
[322629465,1713137440098,-500.0,0.00038356,7]
[322629467,1713137440107,-500.0,0.00038356,7]
[322629469,1713137440117,-500.0,0.00038356,7]
[322629470,1713137440126,-500.0,0.00038356,7]
[322629471,1713137440135,-500.0,0.00038356,7]
[322629472,1713137440144,-380.5566609,0.00038356,7]
[322629473,1713137440154,-500.0,0.00038356,7]
[322629474,1713137440163,-501.91655438,0.00038356,7]
[322629475,1713137440172,-500.0,0.00038356,7]
[322629476,1713137440182,-500.0,0.00038356,7]
[322629477,1713137440191,-500.0,0.00038356,7]
[322629478,1713137440199,-500.0,0.00038356,7]
[322629479,1713137440209,-500.0,0.00038356,7]
[322629480,1713137440218,-500.0,0.00038356,7]
[322629481,1713137440226,-500.0,0.00038356,7]
[322629482,1713137440235,-500.0,0.00038356,7]
[322629483,1713137440244,-500.0,0.00038356,7]
[322629484,1713137440253,-500.0,0.00038356,7]
[322629485,1713137440262,-347.42659579,0.00038356,7]
[322629486,1713137440272,-500.0,0.00038356,7]
[322629487,1713137440281,-623.91599245,0.00038356,7]
[322629488,1713137440290,-500.0,0.00038356,7]
[322629489,1713137440298,-1540.02,0.00038356,7]
[322629490,1713137440308,-500.0,0.00038356,7]
[322629491,1713137440317,-500.0,0.00038356,7]
[322629492,1713137440325,-500.0,0.00038356,7]
[322629493,1713137440335,-500.0,0.00038356,7]
[322629494,1713137440350,-500.0,0.00038356,7]
[322629495,1713137440358,-500.0,0.00038356,7]
[322629496,1713137440369,-500.0,0.00038356,7]
[322629497,1713137440378,-500.0,0.00038356,7]
[322629498,1713137440388,-500.0,0.00038356,7]
[322629499,1713137440397,-500.0,0.00038356,7]
[322629500,1713137440406,-257.45996418,0.00038356,7]
[322629501,1713137440415,-500.0,0.00038356,7]
[322629502,1713137440424,-309.86798025,0.00038356,7]
[322629503,1713137440433,-500.0,0.00038356,7]
[322629504,1713137440442,-500.0,0.00038356,7]
[322629505,1713137440450,-500.0,0.00038356,7]
[322629506,1713137440459,-500.0,0.00038356,7]
[322629507,1713137440468,-500.0,0.00038356,7]
[322629508,1713137440476,-500.0,0.00038356,7]
[322629509,1713137440485,-500.0,0.00038356,7]
[322629510,1713137440494,-500.0,0.00038356,7]
[322629511,1713137440503,-500.0,0.00038356,7]
[322629512,1713137440512,-500.0,0.00038356,7]
[322629513,1713137440521,-500.0,0.00038356,7]
[322629514,1713137440530,-610.4,0.00038356,10]
[322629515,1713137440539,-610.4,0.00038356,10]
[322629516,1713137440549,-610.4,0.00038356,10]
[322629517,1713137440558,-500.0,0.00038356,7]
[322629518,1713137440567,-508.47353412,0.00038356,7]
[322629519,1713137440576,-610.4,0.00038356,10]
[322629520,1713137440585,-610.4,0.00038356,10]
[322629521,1713137440598,-610.4,0.00038356,10]
[322629522,1713137440607,-500.0,0.00038356,7]
[322629523,1713137440616,-610.4,0.00038356,10]
[322629524,1713137440625,-500.0,0.00038356,7]
[322629525,1713137440634,-500.0,0.00038356,7]
[322629526,1713137440646,-6861.52,0.00038356,7]
[322629527,1713137440655,-500.0,0.00038356,7]
[322629528,1713137440663,-500.0,0.00038356,7]
[322629529,1713137440673,-501.38,0.00038356,7]
[322629530,1713137440682,-646.62,0.00038356,7]
[322629532,1713137440691,-20638.41,0.00038356,7]
[322629533,1713137440701,-500.0,0.00038356,7]
[322629534,1713137440710,-1628.6,0.00038356,7]
[322629535,1713137440721,-2239.45,0.00038356,7]
[322629536,1713137440731,-2224.64,0.00038356,7]
[322629537,1713137440740,-36.28654152,0.00038356,7]
[322629542,1713137440975,-463.71345848,0.00038356,7]
[322629544,1713137440985,-500.0,0.00038356,7]
[322629545,1713137440996,-3791.99,0.00038356,7]
[322629547,1713137441005,-500.0,0.00038356,7]
[322629549,1713137441015,-525.06,0.00038356,7]
[322629551,1713137441026,-2966.79,0.00038356,7]
[322629553,1713137441035,-500.0,0.00038356,7]
[322629555,1713137441045,-500.0,0.00038356,7]
[322629557,1713137441054,-500.0,0.00038356,7]
[322629559,1713137441063,-500.0,0.00038356,7]
[322629561,1713137441072,-500.0,0.00038356,7]
[322629563,1713137441082,-500.0,0.00038356,7]
[322629565,1713137441093,-627.87,0.00038356,7]
[322629567,1713137441102,-1100.83,0.00038356,7]
[322629569,1713137441111,-508.55,0.00038356,7]
[322629571,1713137441120,-683.73,0.00038356,7]
[322629573,1713137441129,-593.82,0.00038356,7]
[322629575,1713137441139,-503.24110331,0.00038356,7]
[322629577,1713137441149,-16241.19,0.00038356,7]
[322629579,1713137441159,-545.02,0.00038356,7]
[322629581,1713137441169,-500.0,0.00038356,7]
[322629583,1713137441178,-500.0,0.00038356,7]
[322629584,1713137441187,-500.0,0.00038356,7]
[322629585,1713137441196,-500.0,0.00038356,7]
[322629586,1713137441206,-500.0,0.00038356,7]
[322629587,1713137441215,-741.84,0.00038356,7]
[322629589,1713137441225,-713.68,0.00038356,7]
[322629591,1713137441234,-500.0,0.00038356,7]
[322629594,1713137441244,-1548.68,0.00038356,7]
[322629595,1713137441254,-500.0,0.00038356,7]
[322629597,1713137441263,-502.33054241,0.00038356,7]
[322629599,1713137441273,-500.0,0.00038356,7]
[322629601,1713137441282,-500.0,0.00038356,7]
[322629604,1713137441292,-559.32,0.00038356,7]
[322629605,1713137441303,-502.81429633,0.00038356,7]
[322629608,1713137441313,-500.0,0.00038356,7]
[322629609,1713137441322,-500.0,0.00038356,7]
[322629611,1713137441332,-500.0,0.00038356,7]
[322629613,1713137441343,-1847.64,0.00038356,7]
[322629615,1713137441352,-500.0,0.00038356,7]
[322629617,1713137441361,-500.0,0.00038356,7]
[322629619,1713137441370,-500.0,0.00038356,7]
[322629621,1713137441379,-500.0,0.00038356,7]
[322629623,1713137441389,-592.84,0.00038356,7]
[322629625,1713137441398,-500.0,0.00038356,7]
[322629627,1713137441409,-500.0,0.00038356,7]
[322629629,1713137441418,-500.0,0.00038356,7]
[322629631,1713137441429,-500.0,0.00038356,7]
[322629633,1713137441438,-4700.09,0.00038356,7]
[322629635,1713137441448,-500.0,0.00038356,7]
[322629637,1713137441457,-218.86964851,0.00038356,7]
[322629651,1713137441590,-500.0,0.00038356,7]
[322629653,1713137441601,-500.0,0.00038356,7]
[322629655,1713137441612,-2599.73,0.00038356,7]
[322629657,1713137441623,-871.59,0.00038356,7]
[322629659,1713137441633,-500.0,0.00038356,7]
[322629661,1713137441643,-500.0,0.00038356,7]
[322629663,1713137441653,-500.0,0.00038356,7]
[322629665,1713137441663,-500.0,0.00038356,7]
[322629667,1713137441673,-43196.74,0.00038356,7]
[322629669,1713137441682,-500.0,0.00038356,7]
[322629671,1713137441692,-500.0,0.00038356,7]
[322629673,1713137441701,-971.22,0.00038356,7]
[322629675,1713137441710,-500.0,0.00038356,7]
[322629677,1713137441720,-999.89,0.00038356,7]
[322629679,1713137441730,-500.0,0.00038356,7]
[322629681,1713137441740,-1076.78,0.00038356,7]
[322629682,1713137441749,-500.0,0.00038356,7]
[322629685,1713137441759,-4561.1,0.00038356,7]
[322629687,1713137441769,-500.0,0.00038356,7]
[322629689,1713137441779,-500.0,0.00038356,7]
[322629691,1713137441788,-500.0,0.00038356,7]
[322629693,1713137441797,-500.0,0.00038356,7]
[322629694,1713137441806,-494.01116644,0.00038356,7]
[322629695,1713137441815,-2297.33,0.00038356,7]
[322629696,1713137441825,-2168.62,0.00038356,7]
[322629697,1713137441837,-509.95726876,0.00038356,7]
[322629698,1713137441849,-10532.87,0.00038356,7]
[322629699,1713137441859,-712.93,0.00038356,7]
[322629700,1713137441869,-500.0,0.00038356,7]
[322629701,1713137441878,-500.0,0.00038356,7]
[322629702,1713137441888,-2908.51,0.00038356,7]
[322629703,1713137441898,-499.99,0.00038356,7]
[322629704,1713137441907,-500.0,0.00038356,7]
[322629705,1713137441917,-500.0,0.00038356,7]
[322629706,1713137441927,-558.29,0.00038356,7]
[322629707,1713137441937,-500.0,0.00038356,7]
[322629708,1713137441947,-500.0,0.00038356,7]
[322629709,1713137441956,-500.0,0.00038356,7]
[322629710,1713137441966,-500.0,0.00038356,7]
[322629711,1713137441975,-506.19990765,0.00038356,7]
[322629712,1713137441984,-610.46,0.00038356,7]
[322629713,1713137441995,-724.82,0.00038356,7]
[322629714,1713137442005,-500.0,0.00038356,7]
[322629715,1713137442015,-501.72300528,0.00038356,7]
[322629716,1713137442025,-503.91995,0.00038356,7]
[322629717,1713137442036,-7770.49,0.00038356,7]
[322629718,1713137442046,-501.00546119,0.00038356,7]
[322629719,1713137442057,-501.29234121,0.00038356,7]
[322629720,1713137442067,-500.0,0.00038356,7]
[322629721,1713137442077,-500.62077655,0.00038356,2]
[322629722,1713137442089,-500.0,0.00038356,7]
[322629723,1713137442098,-500.0,0.00038356,7]
[322629724,1713137442108,-500.0,0.00038356,7]
[322629726,1713137442118,-2409.82,0.00038356,7]
[322629728,1713137442127,-2806.22,0.00038356,7]
[322629730,1713137442137,-500.0,0.00038356,7]
[322629732,1713137442146,-500.0,0.00038356,7]
[322629734,1713137442155,-500.0,0.00038356,7]
[322629735,1713137442165,-500.0,0.00038356,7]
[322629737,1713137442175,-627.97,0.00038356,7]
[322629739,1713137442185,-500.0,0.00038356,7]
[322629740,1713137442195,-500.0,0.00038356,7]
[322629741,1713137442205,-520.90262697,0.00038356,7]
[322629742,1713137442214,-1423.27,0.00038356,7]
[322629743,1713137442223,-500.0,0.00038356,7]
[322629744,1713137442233,-4816.39,0.00038356,7]
[322629745,1713137442242,-522.02119539,0.00038356,7]
[322629746,1713137442252,-500.0,0.00038356,7]
[322629747,1713137442262,-2313.71,0.00038356,7]
[322629748,1713137442271,-610.4,0.00038459,10]
[322629749,1713137442281,-867.21554849,0.0003853,2]
[322629750,1713137442291,-3005.26966918,0.0003853,2]
[322629751,1713137442301,-166.666666,0.00038603,2]
[322629752,1713137442311,-610.4,0.00038619,10]
[322629753,1713137442321,-353.96878806,0.00038628,2]
[322629755,1713137442331,-610.4,0.00038629,10]
[322629756,1713137442343,-610.4,0.00038629,10]
[322629757,1713137442352,-610.4,0.00038629,10]
[322629758,1713137442362,-610.4,0.00038629,10]
[322629759,1713137442371,-610.4,0.00038629,10]
[322629760,1713137442381,-684.31,0.0003863,7]
[322629761,1713137442391,-500.0,0.0003863,7]
[322629762,1713137442400,-500.0,0.0003863,7]
[322629763,1713137442411,-151.0,0.0003863,2]
[322629764,1713137442420,-754.38,0.0003863,7]
[322629765,1713137442430,-500.0,0.0003863,7]
[322629766,1713137442441,-1481.07,0.0003863,7]
[322629767,1713137442450,-500.0,0.0003863,7]
[322629768,1713137442459,-500.0,0.0003863,7]
[322629769,1713137442468,-500.0,0.0003863,7]
[322629770,1713137442478,-500.0,0.0003863,7]
[322629771,1713137442487,-500.0,0.0003863,7]
[322629772,1713137442497,-500.0,0.0003863,7]
[322629773,1713137442507,-151.0,0.0003863,2]
[322629774,1713137442517,-151.0,0.0003863,2]
[322629775,1713137442525,-204.442152,0.0003863,2]
[322629776,1713137442535,-500.0,0.0003863,7]
[322629777,1713137442545,-500.0,0.0003863,7]
[322629778,1713137442555,-500.0,0.0003863,7]
[322629779,1713137442565,-500.0,0.0003863,7]
[322629780,1713137442574,-500.0,0.0003863,7]
[322629781,1713137442584,-159.46396657,0.0003863,7]
[322629782,1713137442596,-273.911012,0.0003863,2]
[322629783,1713137442606,-273.911012,0.0003863,2]
[322629784,1713137442616,-273.911012,0.0003863,2]
[322629785,1713137442626,-273.911012,0.0003863,2]
[322629786,1713137442636,-273.911012,0.0003863,2]
[322629787,1713137442647,-500.0,0.0003863,7]
[322629788,1713137442656,-273.911012,0.0003863,2]
[322629789,1713137442665,-578.23,0.0003863,7]
[322629790,1713137442675,-151.0,0.0003863,2]
[322629791,1713137442684,-151.0,0.0003863,2]
[322629792,1713137442693,-151.0,0.0003863,2]
[322629793,1713137442701,-500.0,0.0003863,7]
[322629794,1713137442710,-151.0,0.0003863,2]
[322629795,1713137442720,-151.0,0.0003863,2]
[322629796,1713137442729,-151.0,0.0003863,2]
[322629797,1713137442739,-500.0,0.0003863,7]
[322629798,1713137442748,-345.38173274,0.0003863,7]
[322629799,1713137442758,-500.0,0.0003863,7]
[322629800,1713137442768,-500.0,0.0003863,7]
[322629801,1713137442777,-641.78070259,0.0003863,7]
[322629802,1713137442787,-1636.3,0.0003863,7]
[322629803,1713137442797,-339.27618828,0.0003863,7]
[322629804,1713137442806,-500.0,0.0003863,7]
[322629805,1713137442815,-500.0,0.0003863,7]